fUST/lending_fUST_20250827
["ID","MTS","AMOUNT","RATE_DAILY","PERIOD"]
[381514766,1756242638165,-97.55175567,0.0002798,2]
[381514768,1756242638174,-269.73122684,0.0002798,2]
[381514770,1756242638205,-230.26877316,0.0002798,2]
[381514771,1756242638214,-500.0,0.0002798,2]
[381514772,1756242638224,-500.0,0.0002798,2]
[381514773,1756242638233,-500.0,0.0002798,2]
[381514774,1756242638243,-500.0,0.0002798,2]
[381514775,1756242638252,-500.0,0.0002798,2]
[381514777,1756242638262,-500.0,0.0002798,2]
[381514778,1756242638271,-500.0,0.0002798,2]
[381514779,1756242638281,-500.0,0.0002798,2]
[381514780,1756242638290,-500.0,0.0002798,2]
[381514781,1756242638300,-500.0,0.0002798,2]
[381514782,1756242638308,-500.0,0.0002798,2]
[381514783,1756242638318,-500.0,0.0002798,2]
[381514784,1756242638327,-500.0,0.0002798,2]
[381514785,1756242638335,-500.0,0.0002798,2]
[381514786,1756242638345,-500.0,0.0002798,2]
[381514787,1756242638354,-546.08245339,0.0002798,2]
[381514788,1756242638363,-500.0,0.0002798,2]
[381514789,1756242638372,-500.0,0.0002798,2]
[381514790,1756242638381,-500.0,0.0002798,2]
[381514791,1756242638390,-500.0,0.0002798,2]
[381514793,1756242638399,-265.17572711,0.0002798,2]
[381514795,1756242638409,-500.0,0.0002798,2]
[381514797,1756242638418,-500.0,0.0002798,2]
[381514799,1756242638427,-500.0,0.0002798,2]
[381514801,1756242638436,-489.40529147,0.0002798,2]
[381514803,1756242638445,-208.99477643,0.0002798,2]
[381514805,1756242638454,-500.0,0.0002798,2]
[381514807,1756242638463,-500.0,0.0002798,2]
[381514809,1756242638472,-562.5,0.0002798,2]
[381514811,1756242638480,-500.0,0.0002798,2]
[381514813,1756242638490,-500.0,0.0002798,2]
[381514815,1756242638499,-500.0,0.0002798,2]
[381514817,1756242638508,-500.0,0.0002798,2]
[381514819,1756242638517,-500.0,0.0002798,2]
[381514821,1756242638527,-500.0,0.0002798,2]
[381514823,1756242638536,-370.97997618,0.0002798,2]
[381514825,1756242638545,-500.0,0.0002798,2]
[381514827,1756242638555,-500.0,0.0002798,2]
[381514829,1756242638564,-624.5366515,0.0002798,2]
[381514831,1756242638573,-448.03648364,0.0002798,2]
[381514833,1756242638583,-500.0,0.0002798,2]
[381514835,1756242638593,-500.0,0.0002798,2]
[381514837,1756242638602,-500.0,0.0002798,2]
[381514839,1756242638612,-500.0,0.0002798,2]
[381514841,1756242638621,-500.0,0.0002798,2]
[381514843,1756242638631,-500.0,0.0002798,2]
[381514845,1756242638640,-500.0,0.0002798,2]
[381514847,1756242638649,-500.0,0.0002798,2]
[381514849,1756242638658,-500.0,0.0002798,2]
[381514851,1756242638667,-500.0,0.0002798,2]
[381514853,1756242638676,-500.0,0.0002798,2]
[381514855,1756242638685,-500.0,0.0002798,2]
[381514857,1756242638695,-500.0,0.0002798,2]
[381514859,1756242638704,-500.0,0.0002798,2]
[381514861,1756242638714,-500.0,0.0002798,2]
[381514863,1756242638724,-455.32419104,0.0002798,2]
[381514865,1756242638734,-500.0,0.0002798,2]
[381514867,1756242638744,-500.0,0.0002798,2]
[381514869,1756242638754,-500.0,0.0002798,2]
[381514871,1756242638765,-500.0,0.0002798,2]
[381514873,1756242638775,-500.0,0.0002798,2]
[381514875,1756242638785,-500.0,0.0002798,2]
[381514877,1756242638795,-500.0,0.0002798,2]
[381514879,1756242638804,-500.0,0.0002798,2]
[381514881,1756242638815,-500.0,0.0002798,2]
[381514883,1756242638825,-500.0,0.0002798,2]
[381514885,1756242638836,-500.0,0.0002798,2]
[381514887,1756242638845,-500.0,0.0002798,2]
[381514889,1756242638856,-500.0,0.0002798,2]
[381514891,1756242638866,-500.0,0.0002798,2]
[381514893,1756242638875,-500.0,0.0002798,2]
[381514895,1756242638886,-500.0,0.0002798,2]
[381514897,1756242638896,-363.76994105,0.0002798,2]
[381514899,1756242638905,-500.0,0.0002798,2]
[381514901,1756242638914,-500.0,0.0002798,2]
[381514903,1756242638924,-500.0,0.0002798,2]
[381514905,1756242638933,-500.0,0.0002798,2]
[381514907,1756242638942,-500.0,0.0002798,2]
[381514909,1756242638952,-500.0,0.0002798,2]
[381514912,1756242638964,-500.0,0.0002798,2]
[381514913,1756242638974,-500.0,0.0002798,2]
[381514915,1756242638983,-500.0,0.0002798,2]
[381514918,1756242638993,-500.0,0.0002798,2]
[381514920,1756242639007,-500.0,0.0002798,2]
[381514922,1756242639016,-500.0,0.0002798,2]
[381514924,1756242639026,-500.0,0.0002798,2]
[381514926,1756242639036,-500.0,0.0002798,2]
[381514928,1756242639047,-500.0,0.0002798,2]
[381514930,1756242639056,-500.0,0.0002798,2]
[381514932,1756242639066,-500.0,0.0002798,2]
[381514934,1756242639076,-500.0,0.0002798,2]
[381514936,1756242639086,-300.0,0.0002798,2]
[381514938,1756242639095,-500.0,0.00027981,2]
[381514940,1756242639104,-302.31214777,0.00027981,2]
[381514942,1756242639113,-500.0,0.00027981,2]
[381514944,1756242639123,-500.0,0.00027981,2]
[381514946,1756242639132,-500.0,0.00027981,2]
[381514948,1756242639142,-500.0,0.00027981,2]
[381514949,1756242639151,-500.0,0.00027981,2]
[381514951,1756242639161,-500.0,0.00027981,2]
[381514953,1756242639170,-500.0,0.00027981,2]
[381514955,1756242639179,-500.0,0.00027981,2]
[381514957,1756242639188,-500.0,0.00027981,2]
[381514959,1756242639198,-500.0,0.00027981,2]
[381514961,1756242639207,-500.0,0.00027981,2]
[381514963,1756242639217,-500.0,0.00027981,2]
[381514965,1756242639226,-500.0,0.00027981,2]
[381514967,1756242639236,-538.63649614,0.00027981,2]
[381514969,1756242639245,-500.0,0.00027981,2]
[381514971,1756242639255,-500.0,0.00027981,2]
[381514973,1756242639265,-500.0,0.00027981,2]
[381514975,1756242639274,-500.0,0.00027981,2]
[381514977,1756242639284,-300.0,0.00027981,2]
[381514979,1756242639294,-500.0,0.00027981,2]
[381514981,1756242639303,-500.0,0.00027981,2]
[381514983,1756242639313,-500.0,0.00027981,2]
[381514985,1756242639323,-500.0,0.00027981,2]
[381514987,1756242639333,-500.0,0.00027981,2]
[381514989,1756242639343,-18258.37831198,0.00027982,2]
[381514991,1756242639352,-186.864,0.00027985,18]
[381514993,1756242639362,-500.0,0.00027985,2]
[381514995,1756242639372,-500.0,0.00028,2]
[381514997,1756242639382,-1208.94000564,0.0002849,2]
[381514999,1756242639391,-3433.40996078,0.0002849,2]
[381515001,1756242639400,-500.0,0.00028517,5]
[381515003,1756242639410,-1101.83850376,0.00028533,10]
[381515005,1756242639419,-552.84,0.0002856,3]
[381515007,1756242639430,-500.0,0.00028563,2]
[381515009,1756242639439,-500.0,0.00028563,2]
[381515011,1756242639449,-500.0,0.00028563,2]
[381515013,1756242639458,-500.0,0.00028563,2]
[381515015,1756242639468,-500.0,0.00028563,2]
[381515017,1756242639477,-500.0,0.00028563,2]
[381515019,1756242639486,-500.0,0.00028563,2]
[381515021,1756242639496,-500.0,0.00028563,2]
[381515023,1756242639505,-500.0,0.00028563,2]
[381515025,1756242639514,-500.0,0.00028563,2]
[381515028,1756242639525,-500.0,0.00028563,2]
[381515029,1756242639534,-500.0,0.00028563,2]
[381515031,1756242639543,-281.9163452,0.00028563,2]
[381515033,1756242639552,-552.88,0.0002857,3]
[381515035,1756242639562,-54083.8501666,0.0002857,2]
[381515038,1756242639571,-509.0824859,0.0002857,2]
[381515040,1756242639581,-370000.0,0.0002858,2]
[381515041,1756242639590,-6760.48127082,0.0002859,2]
[381515044,1756242639600,-970.69,0.000286,7]
[381515046,1756242639610,-1046.83,0.000286,7]
[381515048,1756242639619,-16511.22,0.000286,7]
[381515050,1756242639629,-5570.95,0.000286,2]
[381515052,1756242639639,-1901.79954194,0.00028641,2]
[381515054,1756242639648,-437.48,0.0002889,2]
[381515056,1756242639657,-13520.9625416,0.0002898,2]
[381515058,1756242639667,-1000.0,0.00029065,5]
[381515060,1756242639676,-160.0,0.00029158,2]
[381515061,1756242639686,-217.18350301,0.00029158,2]
[381515063,1756242639696,-160.0,0.00029187,2]
[381515065,1756242639706,-216.09257821,0.00029187,2]
[381515067,1756242639715,-425.33923475,0.00029187,2]
[381515069,1756242639724,-160.0,0.00029187,2]
[381515071,1756242639735,-845.07960918,0.0002923,2]
[381515073,1756242639745,-500.0,0.00029613,5]
[381515075,1756242639754,-3018.09,0.00030137,30]
[381515078,1756242639765,-420.0,0.00030219,2]
[381515080,1756242639775,-1101.83850376,0.00030259,13]
[381515082,1756242639785,-166.234131,0.00030265,2]
[381515085,1756242639795,-678.31300708,0.00030303,2]
[381515088,1756242639806,-157.0,0.00031,120]
[381515092,1756242639816,-1562.715075,0.000316,7]
[381515096,1756242639825,-1208.94000562,0.00031616,2]
[381515101,1756242639837,-5179.0,0.00031867,2]
[381515103,1756242639847,-1101.83850376,0.00031986,17]
[381515106,1756242639856,-181.0,0.00032244,120]
[381515109,1756242639865,-160.0,0.0003246,2]
[381515113,1756242639874,-168.0,0.00032462,2]
[381515116,1756242639883,-587.0,0.00032637,2]
[381515118,1756242639893,-5570.95,0.000327,2]
[381515120,1756242639903,-678.31300708,0.00032725,2]
[381515122,1756242639913,-260.0,0.00033008,2]
[381515124,1756242639922,-311.382889,0.00033165,2]
[381515126,1756242639932,-240.0,0.00033556,2]
[381515128,1756242639943,-1101.83850376,0.00033712,21]
[381515130,1756242639953,-1208.94000562,0.00034743,2]
[381515132,1756242639962,-3433.40996078,0.0003488,2]
[381515134,1756242639971,-678.31300708,0.00035146,2]
[381515136,1756242639980,-10000.0,0.00035191,2]
[381515138,1756242639990,-823.0,0.00035249,2]
[381515140,1756242640005,-6760.48127082,0.0003529,2]
[381515142,1756242640016,-16511.22,0.000353,14]
[381515144,1756242640026,-1101.83850376,0.00035439,24]
[381515146,1756242640035,-638.0,0.00036115,2]
[381515148,1756242640046,-2156.0,0.00036115,2]
[381515150,1756242640056,-157.0,0.000362,120]
[381515152,1756242640066,-1000.0,0.00036716,2]
[381515154,1756242640077,-1000.0,0.00036716,2]
[381515156,1756242640087,-1000.0,0.00036716,2]
[381515159,1756242640097,-1000.0,0.00036716,2]
[381515161,1756242640107,-1000.0,0.00036716,2]
[381515162,1756242640116,-1000.0,0.00036716,2]
[381515164,1756242640125,-1000.0,0.00036716,2]
[381515167,1756242640135,-1000.0,0.00036716,2]
[381515168,1756242640144,-1000.0,0.00036716,2]
[381515171,1756242640154,-1000.0,0.00036716,2]
[381515173,1756242640164,-1000.0,0.00036716,2]
[381515175,1756242640174,-1000.0,0.00036716,2]
[381515177,1756242640183,-1000.0,0.00036716,2]
[381515179,1756242640193,-665.98317863,0.00036716,2]
[381515181,1756242640202,-150.0,0.00036835,2]
[381515183,1756242640212,-974.0,0.00036867,2]
[381515185,1756242640222,-1046.83,0.000369,7]
[381515187,1756242640232,-1101.83850376,0.00037166,28]
[381515189,1756242640242,-970.69,0.000374,7]
[381515191,1756242640251,-678.31300708,0.00037567,2]
[381515193,1756242640262,-1208.94000562,0.00037869,2]
[381515195,1756242640272,-160.0,0.00037928,3]
[381515197,1756242640281,-1152.0,0.00038069,2]
[381515199,1756242640290,-5570.95,0.000381,14]
[381515201,1756242640300,-6760.48127082,0.00038346,3]
[381515203,1756242640317,-500.0,0.00038356,120]
[381515205,1756242640326,-150.0,0.000386,36]
[381515207,1756242640335,-1101.83850376,0.00038892,32]
[381515210,1756242640344,-600.0,0.00038903,7]
[381515212,1756242640360,-500.0,0.00038904,120]
[381515215,1756242640370,-638.0,0.00039115,2]
[381515217,1756242640379,-2156.0,0.00039115,2]
[381515219,1756242640388,-500.0,0.00039452,120]
[381515221,1756242640399,-311.382889,0.00039654,2]
[381515223,1756242640408,-600.0,0.00039725,7]
[381515225,1756242640418,-4773.0876855,0.0003975,2]
[381515227,1756242640427,-150.0,0.00039835,2]
[381515229,1756242640437,-974.0,0.00039867,2]
[381515231,1756242640446,-678.31300708,0.00039988,2]
[381515233,1756242640457,-500.0,0.00039998,7]
[381515235,1756242640466,-500.0,0.0004,30]
[381515237,1756242640475,-503.79895917,0.0004,30]
[381515239,1756242640485,-503.86887275,0.0004,30]
[381515241,1756242640494,-500.0,0.0004,120]
[381515243,1756242640503,-500.0,0.00040031,30]
[381515245,1756242640512,-335.583162,0.000401,2]
[381515247,1756242640521,-16511.22,0.000401,14]
[381515249,1756242640531,-500.0,0.0004014,30]
[381515251,1756242640540,-800.0,0.00040236,30]
[381515253,1756242640549,-869.81034234,0.0004024,2]
[381515255,1756242640558,-800.0,0.00040323,30]
[381515257,1756242640567,-166.234131,0.00040324,20]
[381515259,1756242640578,-800.0,0.00040454,30]
[381515261,1756242640587,-5570.95,0.000405,14]
[381515263,1756242640597,-150.0,0.00040505,2]
[381515265,1756242640606,-500.0,0.00040521,30]
[381515267,1756242640621,-800.0,0.00040539,30]
[381515269,1756242640631,-600.0,0.00040547,7]
[381515271,1756242640646,-500.0,0.00040547,120]
[381515273,1756242640655,-1000.0,0.00040584,2]
[381515275,1756242640666,-6760.48127082,0.0004059,3]
[381515277,1756242640675,-199.0,0.000406,120]
[381515279,1756242640684,-1046.83,0.000406,7]
[381515281,1756242640694,-216.09257821,0.000406,3]
[381515283,1756242640704,-160.0,0.000406,3]
[381515285,1756242640713,-160.0,0.000406,30]
[381515287,1756242640722,-1101.83850376,0.00040619,36]
[381515289,1756242640731,-500.0,0.00040628,30]
[381515291,1756242640740,-150.0,0.0004063,2]
[381515293,1756242640750,-150.0,0.00040756,2]
[381515295,1756242640759,-713.659,0.00040812,30]
[381515297,1756242640768,-2200.0,0.00040812,14]
[381515299,1756242640778,-500.0,0.00040813,30]
[381515301,1756242640787,-150.0,0.00040881,2]
[381515303,1756242640796,-970.69,0.000409,7]
[381515305,1756242640806,-646.0,0.000409,30]
[381515307,1756242640815,-203.0,0.0004094,56]
[381515309,1756242640825,-499.3,0.00040965,30]
[381515311,1756242640834,-173.84119207,0.00040975,10]
[381515313,1756242640843,-13520.9625416,0.00040984,3]
[381515315,1756242640852,-203.63299436,0.00040984,3]
[381515317,1756242640862,-6760.48127082,0.00040985,3]
[381515319,1756242640871,-151.0,0.00040994,30]
[381515321,1756242640881,-389.219866,0.00040994,30]
[381515323,1756242640890,-151.0,0.00040994,30]
[381515325,1756242640899,-151.0,0.00040994,30]
[381515327,1756242640908,-151.0,0.00040994,30]
[381515329,1756242640918,-151.0,0.00040994,30]
[381515331,1756242640927,-151.785022,0.00040994,30]
[381515333,1756242640936,-151.0,0.00040994,30]
[381515335,1756242640945,-151.0,0.00040994,30]
[381515337,1756242640955,-151.0,0.00040994,30]
[381515339,1756242640963,-151.0,0.00040994,30]
[381515341,1756242640973,-188.400351,0.00040994,30]
[381515343,1756242640982,-151.0,0.00040994,30]
[381515346,1756242641004,-261.438781,0.00040994,30]
[381515348,1756242641016,-389.219866,0.00040994,30]
[381515350,1756242641027,-151.0,0.00040994,30]
[381515352,1756242641038,-389.219866,0.00040994,30]
[381515355,1756242641048,-389.219866,0.00040994,30]
[381515357,1756242641058,-151.0,0.00040994,30]
[381515359,1756242641068,-151.0,0.00040994,30]
[381515361,1756242641079,-151.0,0.00040994,30]
[381515363,1756242641090,-151.0,0.00040994,30]
[381515365,1756242641101,-151.0,0.00040994,30]
[381515367,1756242641111,-151.0,0.00040994,30]
[381515369,1756242641120,-151.0,0.00040994,30]
[381515371,1756242641130,-151.0,0.00040994,30]
[381515373,1756242641139,-151.0,0.00040994,30]
[381515375,1756242641150,-151.0,0.00040994,30]
[381515377,1756242641159,-151.0,0.00040994,30]
[381515379,1756242641169,-151.0,0.00040994,30]
[381515381,1756242641179,-184.152128,0.00040994,30]
[381515383,1756242641188,-151.0,0.00040994,30]
[381515385,1756242641198,-183.467516,0.00040994,30]
[381515388,1756242641209,-250.0,0.00040994,120]
[381515390,1756242641218,-300.0,0.00040994,120]
[381515392,1756242641228,-151.0,0.00040994,120]
[381515394,1756242641237,-250.0,0.00040994,120]
[381515396,1756242641246,-16000.0,0.00040994,120]
[381515398,1756242641256,-300.0,0.00040994,120]
[381515400,1756242641266,-151.0,0.00040994,120]
[381515402,1756242641275,-151.0,0.00040994,120]
[381515404,1756242641285,-250.0,0.00040994,120]
[381515406,1756242641294,-16592.0,0.00040994,120]
[381515408,1756242641304,-151.0,0.00040994,120]
[381515410,1756242641313,-151.0,0.00040994,120]
[381515412,1756242641323,-300.0,0.00040994,120]
[381515414,1756242641333,-250.0,0.00040994,120]
[381515416,1756242641342,-17205.904,0.00040994,120]
[381515418,1756242641351,-151.0,0.00040994,30]
[381515420,1756242641361,-151.0,0.00040994,120]
[381515422,1756242641371,-300.0,0.00040994,120]
[381515424,1756242641380,-250.0,0.00040994,120]
[381515426,1756242641390,-17842.522448,0.00040994,120]
[381515428,1756242641399,-151.0,0.00040994,120]
[381515430,1756242641410,-151.0,0.00040994,120]
[381515433,1756242641419,-300.0,0.00040994,120]
[381515435,1756242641428,-18502.69577858,0.00040994,120]
[381515437,1756242641438,-300.0,0.00040994,120]
[381515439,1756242641448,-151.0,0.00040994,120]
[381515441,1756242641458,-151.0,0.00040994,30]
[381515443,1756242641468,-250.0,0.00040994,120]
[381515445,1756242641477,-300.0,0.00040994,120]
[381515447,1756242641487,-151.0,0.00040994,120]
[381515449,1756242641496,-151.0,0.00040994,120]
[381515451,1756242641507,-151.0,0.00040994,120]
[381515453,1756242641519,-19187.29552238,0.00040994,120]
[381515455,1756242641529,-151.0,0.00040994,120]
[381515457,1756242641540,-151.0,0.00040994,120]
[381515459,1756242641550,-250.0,0.00040994,120]
[381515461,1756242641560,-151.0,0.00040994,120]
[381515463,1756242641571,-300.0,0.00040994,120]
[381515465,1756242641582,-151.0,0.00040994,120]
[381515467,1756242641592,-156.587,0.00040994,120]
[381515484,1756242641836,-300.0,0.00040994,120]
[381515485,1756242641847,-1446.12727623,0.00040994,120]
[381515486,1756242641857,-298.903329,0.00040994,30]
[381515487,1756242641866,-151.0,0.00040994,120]
[381515488,1756242641876,-250.0,0.00040994,120]
[381515489,1756242641886,-151.0,0.00040994,120]
[381515490,1756242641895,-151.0,0.00040994,120]
[381515491,1756242641905,-162.380719,0.00040994,120]
[381515492,1756242641914,-300.0,0.00040994,120]
[381515493,1756242641924,-151.0,0.00040994,120]
[381515494,1756242641933,-201.89770887,0.00040994,120]
[381515495,1756242641942,-151.0,0.00040994,120]
[381515496,1756242641952,-165.13039111,0.00040994,120]
[381515497,1756242641961,-300.0,0.00040994,120]
[381515498,1756242641970,-151.0,0.00040994,120]
[381515499,1756242641980,-298.903329,0.00040994,30]
[381515500,1756242641990,-177.50560328,0.00040994,120]
[381515501,1756242642002,-300.0,0.00040994,120]
[381515502,1756242642011,-151.0,0.00040994,120]
[381515504,1756242642022,-168.3888056,0.00040994,120]
[381515506,1756242642031,-300.0,0.00040994,120]
[381515508,1756242642042,-151.0,0.00040994,120]
[381515510,1756242642052,-174.61919141,0.00040994,120]
[381515512,1756242642062,-300.0,0.00040994,120]
[381515514,1756242642071,-181.08010149,0.00040994,120]
[381515516,1756242642082,-298.903329,0.00040994,30]
[381515518,1756242642091,-151.0,0.00040994,120]
[381515520,1756242642102,-187.78006526,0.00040994,120]
[381515522,1756242642111,-151.0,0.00040994,120]
[381515525,1756242642121,-500.0,0.00040994,120]
[381515527,1756242642130,-151.0,0.00040994,120]
[381515529,1756242642140,-298.903329,0.00040994,30]
[381515531,1756242642150,-500.0,0.00040994,120]
[381515532,1756242642160,-167.83417776,0.00040994,120]
[381515535,1756242642170,-500.0,0.00040994,120]
[381515536,1756242642180,-500.0,0.00040994,120]
[381515538,1756242642189,-500.0,0.00040994,120]
[381515540,1756242642199,-500.0,0.00040994,120]
[381515543,1756242642208,-151.11437487,0.00040994,120]
[381515545,1756242642218,-500.0,0.00040994,120]
[381515547,1756242642227,-151.0,0.00040994,120]
[381515549,1756242642237,-151.0,0.00040995,30]
[381515551,1756242642247,-151.0,0.00040995,30]
[381515553,1756242642257,-151.0,0.00040995,30]
[381515555,1756242642268,-151.0,0.00040995,30]
[381515557,1756242642278,-151.0,0.00040995,30]
[381515559,1756242642287,-151.0,0.00040995,30]
[381515561,1756242642296,-151.0,0.00040995,30]
[381515563,1756242642306,-154.122369,0.00040995,30]
[381515565,1756242642315,-1208.94000562,0.00040995,2]
[381515567,1756242642327,-11302.98328759,0.00041,2]
[381515568,1756242642337,-150.0,0.00041,120]
[381515570,1756242642346,-151.0,0.00041,2]
[381515573,1756242642356,-151.0,0.00041,30]
[381515574,1756242642365,-151.0,0.00041,30]
[381515576,1756242642375,-151.0,0.00041,30]
[381515579,1756242642384,-151.0,0.00041,30]
[381515581,1756242642395,-151.0,0.00041,30]
[381515583,1756242642404,-151.0,0.00041,30]
[381515585,1756242642414,-151.0,0.00041,30]
[381515587,1756242642423,-151.0,0.00041,30]
[381515589,1756242642432,-151.0,0.00041,30]
[381515591,1756242642442,-151.0,0.00041,30]
[381515593,1756242642451,-151.0,0.00041,30]
[381515595,1756242642460,-151.0,0.00041,30]
[381515597,1756242642469,-151.0,0.00041,30]
[381515599,1756242642478,-151.0,0.00041,30]
[381515601,1756242642487,-185.557808,0.00041,30]
[381515603,1756242642497,-151.0,0.00041,30]
[381515605,1756242642507,-151.0,0.00041,30]
[381515607,1756242642517,-151.0,0.00041,30]
[381515609,1756242642526,-151.0,0.00041,30]
[381515610,1756242642535,-151.0,0.00041,30]
[381515613,1756242642545,-151.0,0.00041,30]
[381515615,1756242642554,-151.0,0.00041,30]
[381515617,1756242642564,-151.0,0.00041,30]
[381515619,1756242642573,-151.0,0.00041,30]
[381515620,1756242642583,-151.0,0.00041,30]
[381515623,1756242642598,-151.0,0.00041,30]
[381515625,1756242642608,-191.429803,0.00041,2]
[381515627,1756242642617,-417.15472785,0.00041,30]
[381515629,1756242642628,-417.15472785,0.00041,120]
[381515630,1756242642638,-204.211716,0.00041,2]
[381515633,1756242642647,-292.07,0.00041006,2]
[381515636,1756242642657,-500.0,0.00041054,30]
[381515640,1756242642667,-800.0,0.00041059,30]
[381515641,1756242642676,-500.0,0.00041073,5]
[381515644,1756242642686,-500.0,0.00041073,5]
[381515647,1756242642695,-150.68470968,0.00041073,5]
[381515650,1756242642705,-500.0,0.00041073,5]
[381515652,1756242642715,-500.0,0.00041073,5]
[381515654,1756242642724,-500.0,0.00041073,5]
[381515656,1756242642734,-500.0,0.00041073,5]
[381515658,1756242642743,-20281.4438125,0.00041085,3]
[381515660,1756242642753,-203.63299436,0.00041085,3]
[381515662,1756242642762,-1000.0,0.00041094,120]
[381515664,1756242642772,-500.0,0.00041095,15]
[381515666,1756242642782,-1000.0,0.00041095,30]
[381515668,1756242642791,-1000.0,0.00041095,30]
[381515670,1756242642801,-480.0,0.00041095,120]
[381515672,1756242642810,-348.82003808,0.00041095,120]
[381515674,1756242642820,-480.0,0.00041095,120]
[381515676,1756242642830,-480.0,0.00041095,120]
[381515678,1756242642839,-480.0,0.00041095,120]
[381515680,1756242642848,-480.0,0.00041095,120]
[381515682,1756242642858,-480.0,0.00041095,120]
[381515684,1756242642868,-480.0,0.00041095,120]
[381515686,1756242642877,-480.0,0.00041095,120]
[381515688,1756242642887,-500.0,0.00041095,2]
[381515690,1756242642896,-500.0,0.00041095,2]
[381515692,1756242642906,-500.0,0.00041095,2]
[381515694,1756242642915,-500.0,0.00041095,2]
[381515696,1756242642924,-500.0,0.00041095,2]
[381515698,1756242642934,-583.56,0.00041095,120]
[381515700,1756242642943,-500.0,0.00041095,2]
[381515702,1756242642953,-500.0,0.00041095,2]
[381515704,1756242642962,-500.0,0.00041095,2]
[381515706,1756242642972,-152.19370726,0.00041095,2]
[381515707,1756242642981,-480.0,0.00041095,120]
[381515710,1756242642991,-480.0,0.00041095,120]
[381515712,1756242643002,-480.0,0.00041095,120]
[381515714,1756242643012,-480.0,0.00041095,120]
[381515715,1756242643021,-480.0,0.00041095,120]
[381515718,1756242643031,-480.0,0.00041095,120]
[381515719,1756242643040,-499.05,0.00041095,120]
[381515721,1756242643050,-480.0,0.00041095,120]
[381515723,1756242643060,-516.85,0.00041095,120]
[381515726,1756242643070,-754.55,0.00041095,120]
[381515727,1756242643080,-480.0,0.00041095,120]
[381515730,1756242643090,-480.67387012,0.00041095,120]
[381515732,1756242643099,-480.0,0.00041095,120]
[381515734,1756242643109,-480.0,0.00041095,120]
[381515736,1756242643118,-480.0,0.00041095,120]
[381515738,1756242643128,-480.0,0.00041095,120]
[381515740,1756242643137,-480.0,0.00041095,120]
[381515742,1756242643147,-480.0,0.00041095,120]
[381515744,1756242643156,-480.0,0.00041095,120]
[381515746,1756242643166,-480.0,0.00041095,120]
[381515748,1756242643176,-480.0,0.00041095,120]
[381515750,1756242643185,-480.0,0.00041095,120]
[381515752,1756242643195,-480.0,0.00041095,120]
[381515754,1756242643204,-480.0,0.00041095,120]
[381515756,1756242643214,-529.37,0.00041095,120]
[381515758,1756242643223,-480.0,0.00041095,120]
[381515760,1756242643233,-480.0,0.00041095,120]
[381515762,1756242643243,-480.0,0.00041095,120]
[381515764,1756242643252,-480.0,0.00041095,120]
[381515766,1756242643261,-480.0,0.00041095,120]
[381515768,1756242643271,-480.0,0.00041095,120]
[381515770,1756242643281,-500.0,0.00041095,120]